fUSD/lending_fUSD_20251024
["ID","MTS","AMOUNT","RATE_DAILY","PERIOD"]
[392278686,1761301842697,-151.0,0.00038423,120]
[392278687,1761301842707,-190.035517,0.00038423,120]
[392278688,1761301842716,-190.035517,0.00038423,120]
[392278689,1761301842725,-190.035517,0.00038423,120]
[392278690,1761301842734,-324.417827,0.00038423,120]
[392278691,1761301842743,-324.417827,0.00038423,120]
[392278692,1761301842753,-246.415835,0.00038423,120]
[392278693,1761301842762,-324.417827,0.00038423,120]
[392278694,1761301842772,-324.417827,0.00038423,120]
[392278695,1761301842782,-151.0,0.00038423,120]
[392278696,1761301842791,-151.0,0.00038423,120]
[392278697,1761301842801,-151.0,0.00038423,120]
[392278698,1761301842810,-151.0,0.00038423,120]
[392278699,1761301842819,-224.412732,0.00038423,120]
[392278700,1761301842829,-151.0,0.00038423,120]
[392278701,1761301842839,-151.0,0.00038423,120]
[392278702,1761301842848,-151.0,0.00038423,120]
[392278703,1761301842857,-151.0,0.00038423,120]
[392278704,1761301842867,-151.0,0.00038423,120]
[392278705,1761301842876,-151.0,0.00038423,120]
[392278706,1761301842885,-18121.62303274,0.00038433,2]
[392278707,1761301842894,-2471.047006,0.00038433,120]
[392278708,1761301842903,-151.0,0.00038433,120]
[392278709,1761301842912,-2471.047006,0.00038433,120]
[392278710,1761301842921,-151.0,0.00038433,120]
[392278711,1761301842932,-2471.047006,0.00038433,120]
[392278712,1761301842942,-151.0,0.00038433,120]
[392278713,1761301842951,-2471.047006,0.00038433,120]
[392278714,1761301842960,-500.0,0.00038473,5]
[392278715,1761301842970,-160.29942515,0.00038473,2]
[392278716,1761301842979,-160.17964714,0.00038473,5]
[392278717,1761301842988,-200.0,0.00038473,5]
[392278718,1761301842997,-500.0,0.00038473,5]
[392278719,1761301843006,-503.40980697,0.00038473,5]
[392278720,1761301843016,-160.26537923,0.00038473,5]
[392278721,1761301843024,-500.0,0.00038473,5]
[392278722,1761301843034,-500.0,0.00038473,5]
[392278723,1761301843043,-500.0,0.00038473,5]
[392278724,1761301843052,-500.0,0.00038473,5]
[392278725,1761301843062,-350.5871001,0.00038473,5]
[392278726,1761301843071,-160.2103039,0.00038473,5]
[392278727,1761301843080,-463.72592388,0.00038473,5]
[392278728,1761301843089,-205.34408447,0.00038473,5]
[392278729,1761301843099,-500.0,0.00038473,5]
[392278730,1761301843107,-501.14407453,0.00038473,5]
[392278731,1761301843117,-157.67669232,0.00038473,5]
[392278732,1761301843126,-500.0,0.00038473,5]
[392278733,1761301843135,-500.0,0.00038473,5]
[392278734,1761301843143,-500.0,0.00038473,5]
[392278735,1761301843152,-163.8511214,0.00038473,5]
[392278736,1761301843161,-500.30913434,0.00038473,5]
[392278737,1761301843171,-500.0,0.00038473,5]
[392278738,1761301843180,-500.0,0.00038473,5]
[392278739,1761301843190,-500.0,0.00038473,5]
[392278740,1761301843199,-360.43011227,0.00038473,5]
[392278741,1761301843208,-20271.050087,0.0003848,3]
[392278742,1761301843218,-6784.05677223,0.0003848,3]
[392278743,1761301843227,-500.0,0.00038489,30]
[392278744,1761301843238,-500.0,0.00038489,30]
[392278745,1761301843247,-500.0,0.00038489,2]
[392278746,1761301843256,-500.0,0.00038489,2]
[392278747,1761301843266,-121626.300522,0.0003849,3]
[392278748,1761301843275,-31658.9316037,0.0003849,3]
[392278749,1761301843285,-151.0,0.0003849,120]
[392278750,1761301843294,-151.0,0.0003849,120]
[392278751,1761301843303,-151.0,0.0003849,120]
[392278752,1761301843313,-151.0,0.0003849,120]
[392278753,1761301843322,-151.0,0.0003849,120]
[392278754,1761301843331,-151.0,0.0003849,120]
[392278755,1761301843341,-151.0,0.0003849,120]
[392278756,1761301843350,-151.0,0.0003849,120]
[392278758,1761301843360,-151.0,0.0003849,120]
[392278760,1761301843369,-151.0,0.0003849,120]
[392278761,1761301843379,-151.0,0.0003849,120]
[392278762,1761301843390,-154.747179,0.0003849,120]
[392278763,1761301843400,-151.0,0.0003849,120]
[392278764,1761301843410,-151.0,0.0003849,120]
[392278765,1761301843421,-171.814864,0.0003849,120]
[392278766,1761301843431,-151.0,0.0003849,120]
[392278767,1761301843442,-171.814864,0.0003849,120]
[392278768,1761301843453,-151.0,0.0003849,120]
[392278769,1761301843464,-151.0,0.0003849,120]
[392278770,1761301843476,-171.814864,0.0003849,120]
[392278771,1761301843487,-151.0,0.0003849,120]
[392278772,1761301843497,-151.0,0.0003849,120]
[392278773,1761301843508,-171.814864,0.0003849,120]
[392278774,1761301843518,-494.603744,0.0003849,30]
[392278775,1761301843528,-151.0,0.0003849,60]
[392278776,1761301843538,-494.603744,0.0003849,30]
[392278777,1761301843547,-153.36771,0.0003849,120]
[392278778,1761301843556,-151.0,0.0003849,120]
[392278779,1761301843566,-494.603744,0.0003849,30]
[392278780,1761301843575,-220.79817,0.0003849,120]
[392278781,1761301843586,-494.603744,0.0003849,30]
[392278782,1761301843595,-151.0,0.0003849,120]
[392278783,1761301843602,-220.79817,0.0003849,120]
[392278784,1761301843612,-220.79817,0.0003849,120]
[392278785,1761301843622,-151.0,0.0003849,120]
[392278786,1761301843632,-220.79817,0.0003849,120]
[392278787,1761301843642,-151.0,0.0003849,120]
[392278788,1761301843648,-151.0,0.0003849,120]
[392278789,1761301843657,-151.0,0.0003849,120]
[392278790,1761301843666,-185.336876,0.0003849,120]
[392278791,1761301843676,-151.0,0.0003849,120]
[392278792,1761301843685,-151.0,0.0003849,120]
[392278793,1761301843694,-185.336876,0.0003849,120]
[392278794,1761301843704,-185.336876,0.0003849,120]
[392278795,1761301843713,-151.0,0.0003849,120]
[392278796,1761301843722,-180.170392,0.0003849,120]
[392278797,1761301843731,-185.336876,0.0003849,120]
[392278798,1761301843741,-180.170392,0.0003849,120]
[392278799,1761301843751,-151.0,0.0003849,120]
[392278800,1761301843760,-180.170392,0.0003849,120]
[392278801,1761301843771,-180.170392,0.0003849,120]
[392278802,1761301843780,-500.0,0.00038499,30]
[392278803,1761301843790,-500.0,0.00038499,2]
[392278804,1761301843799,-500.0,0.00038499,2]
[392278805,1761301843808,-33170.7581,0.000385,2]
[392278806,1761301843818,-192905.9012,0.000385,2]
[392278807,1761301843827,-153.097572,0.000385,120]
[392278808,1761301843836,-151.0,0.000385,120]
[392278809,1761301843845,-388.10741,0.000385,120]
[392278810,1761301843855,-151.0,0.000385,120]
[392278811,1761301843864,-151.0,0.000385,120]
[392278812,1761301843874,-151.0,0.000385,120]
[392278813,1761301843883,-388.10741,0.000385,120]
[392278814,1761301843891,-151.0,0.000385,120]
[392278815,1761301843902,-388.10741,0.000385,120]
[392278816,1761301843911,-388.10741,0.000385,120]
[392278817,1761301843921,-151.0,0.000385,120]
[392278818,1761301843931,-151.0,0.000385,120]
[392278819,1761301843943,-151.0,0.000385,120]
[392278820,1761301843953,-151.0,0.000385,120]
[392278821,1761301843962,-151.0,0.000385,120]
[392278822,1761301843972,-151.0,0.000385,120]
[392278823,1761301843981,-151.0,0.000385,120]
[392278824,1761301843991,-282.351734,0.000385,120]
[392278825,1761301844000,-151.0,0.000385,120]
[392278826,1761301844009,-151.0,0.000385,120]
[392278827,1761301844019,-299.147991,0.000385,120]
[392278828,1761301844028,-299.147991,0.000385,120]
[392278829,1761301844038,-151.0,0.000385,30]
[392278830,1761301844048,-299.147991,0.000385,120]
[392278831,1761301844058,-151.0,0.000385,120]
[392278832,1761301844067,-299.147991,0.000385,120]
[392278833,1761301844077,-151.0,0.000385,120]
[392278834,1761301844088,-151.0,0.000385,120]
[392278835,1761301844103,-220.794528,0.000385,120]
[392278836,1761301844122,-151.0,0.000385,120]
[392278837,1761301844131,-151.0,0.000385,120]
[392278838,1761301844140,-151.0,0.000385,120]
[392278839,1761301844149,-154.30712,0.000385,120]
[392278840,1761301844158,-151.0,0.000385,120]
[392278841,1761301844167,-151.0,0.000385,120]
[392278842,1761301844176,-151.0,0.000385,120]
[392278843,1761301844185,-151.0,0.000385,120]
[392278844,1761301844195,-151.0,0.000385,120]
[392278845,1761301844203,-151.0,0.000385,120]
[392278846,1761301844212,-151.0,0.000385,120]
[392278847,1761301844221,-151.0,0.000385,120]
[392278848,1761301844231,-151.0,0.000385,120]
[392278849,1761301844240,-189.801417,0.000385,120]
[392278850,1761301844248,-151.0,0.000385,120]
[392278851,1761301844257,-151.0,0.000385,120]
[392278852,1761301844267,-151.0,0.000385,120]
[392278853,1761301844275,-151.0,0.000385,120]
[392278854,1761301844284,-151.0,0.000385,120]
[392278855,1761301844295,-151.0,0.000385,120]
[392278856,1761301844305,-162.460301,0.000385,120]
[392278857,1761301844314,-151.0,0.000385,120]
[392278858,1761301844323,-333.953392,0.000385,120]
[392278859,1761301844333,-293.384748,0.000385,120]
[392278860,1761301844343,-333.953392,0.000385,120]
[392278861,1761301844352,-151.0,0.000385,120]
[392278862,1761301844362,-333.953392,0.000385,120]
[392278863,1761301844371,-151.0,0.000385,30]
[392278864,1761301844380,-333.953392,0.000385,120]
[392278865,1761301844390,-190.035517,0.000385,120]
[392278866,1761301844399,-151.0,0.000385,120]
[392278867,1761301844408,-190.035517,0.000385,120]
[392278868,1761301844418,-190.035517,0.000385,120]
[392278869,1761301844427,-190.035517,0.000385,120]
[392278870,1761301844436,-324.417827,0.000385,120]
[392278871,1761301844446,-324.417827,0.000385,120]
[392278872,1761301844455,-324.417827,0.000385,120]
[392278873,1761301844465,-324.417827,0.000385,120]
[392278874,1761301844474,-151.0,0.000385,120]
[392278875,1761301844484,-255.79046,0.000385,120]
[392278876,1761301844493,-151.0,0.000385,120]
[392278877,1761301844503,-151.0,0.000385,120]
[392278878,1761301844512,-151.0,0.000385,120]
[392278879,1761301844522,-151.0,0.000385,120]
[392278880,1761301844531,-151.0,0.000385,120]
[392278881,1761301844541,-151.0,0.000385,120]
[392278882,1761301844551,-153.894172,0.000385,120]
[392278883,1761301844560,-180.372857,0.000385,120]
[392278884,1761301844569,-2471.047006,0.000385,120]
[392278885,1761301844578,-151.0,0.000385,120]
[392278886,1761301844588,-2471.047006,0.000385,120]
[392278887,1761301844597,-2471.047006,0.000385,120]
[392278888,1761301844606,-151.0,0.000385,120]
[392278889,1761301844615,-2471.047006,0.000385,120]
[392278890,1761301844625,-500.0,0.00038599,7]
[392278891,1761301844635,-1000.0,0.00038652,2]
[392278892,1761301844645,-840.0,0.00038681,2]
[392278893,1761301844654,-300.0,0.00038685,14]
[392278894,1761301844663,-250.0,0.00038685,3]
[392278895,1761301844673,-250.0,0.00038685,3]
[392278896,1761301844682,-1074.0,0.00038722,7]
[392278897,1761301844691,-151.1,0.00038761,120]
[392278898,1761301844701,-498.31,0.000388,30]
[392278899,1761301844710,-500.0,0.00038849,30]
[392278900,1761301844719,-196.3286,0.00038888,30]
[392278901,1761301844728,-1171.01824645,0.00038914,2]
[392278902,1761301844738,-2261.35225741,0.00038915,3]
[392278903,1761301844747,-506.05,0.00038925,2]
[392278904,1761301844756,-1000.0,0.00038925,2]
[392278905,1761301844766,-651.71,0.00039,14]
[392278906,1761301844775,-237.6,0.0003901,2]
[392278907,1761301844785,-734.90166428,0.00039021,5]
[392278908,1761301844795,-1000.0,0.00039021,5]
[392278909,1761301844805,-1000.0,0.00039021,5]
[392278910,1761301844815,-500.0,0.00039021,5]
[392278911,1761301844824,-1148.55855287,0.00039021,5]
[392278912,1761301844834,-1000.0,0.00039021,5]
[392278913,1761301844843,-1000.0,0.00039021,5]
[392278914,1761301844852,-1000.0,0.00039021,5]
[392278915,1761301844862,-1000.0,0.00039021,5]
[392278916,1761301844871,-1000.0,0.00039021,5]
[392278917,1761301844880,-840.0,0.00039092,2]
[392278918,1761301844890,-20271.050087,0.00039132,3]
[392278919,1761301844900,-2261.35225741,0.00039132,3]
[392278920,1761301844910,-18121.62303274,0.00039142,2]
[392278921,1761301844919,-400.0,0.00039158,5]
[392278922,1761301844929,-1000.0,0.00039199,2]
[392278923,1761301844942,-1000.0,0.00039242,7]
[392278924,1761301844952,-525.76585025,0.00039245,30]
[392278925,1761301844962,-500.0,0.00039338,30]
[392278926,1761301844972,-840.0,0.00039436,7]
[392278927,1761301844981,-789.6159818,0.00039473,2]
[392278928,1761301844991,-300.0,0.000395,2]
[392278929,1761301845002,-344.75363738,0.000395,2]
[392278930,1761301845012,-1001.86385608,0.00039568,5]
[392278931,1761301845022,-1500.0,0.00039568,5]
[392278932,1761301845032,-1500.0,0.00039568,5]
[392278933,1761301845042,-1500.0,0.00039568,5]
[392278934,1761301845052,-1502.90900814,0.00039568,5]
[392278935,1761301845062,-1500.0,0.00039568,5]
[392278936,1761301845074,-503.66138945,0.00039568,5]
[392278937,1761301845084,-500.0,0.0003961,30]
[392278938,1761301845094,-810.58879112,0.00039627,2]
[392278939,1761301845103,-2261.35225741,0.00039716,3]
[392278940,1761301845114,-461.24831418,0.00039726,15]
[392278941,1761301845124,-20271.050087,0.00039841,3]
[392278942,1761301845134,-2261.35225741,0.00039841,3]
[392278943,1761301845144,-600.0,0.00039842,5]
[392278944,1761301845154,-18121.62303274,0.00039851,15]
[392278945,1761301845164,-168.47,0.00039863,2]
[392278946,1761301845174,-168.29,0.00039863,2]
[392278947,1761301845183,-547.46,0.00039863,2]
[392278948,1761301845193,-168.52,0.00039863,2]
[392278949,1761301845202,-547.6,0.00039863,2]
[392278950,1761301845212,-547.46,0.00039863,2]
[392278951,1761301845222,-2261.35225741,0.00039871,3]
[392278952,1761301845232,-810.58879112,0.00039886,2]
[392278953,1761301845241,-500.0,0.00039896,30]
[392278954,1761301845251,-152.0,0.000399,5]
[392278955,1761301845261,-1200.0,0.000399,14]
[392278956,1761301845270,-498.31,0.000399,30]
[392278957,1761301845280,-151.0,0.00039938,120]
[392278958,1761301845291,-151.0,0.00039938,120]
[392278959,1761301845301,-151.0,0.00039938,120]
[392278960,1761301845311,-151.0,0.00039938,120]
[392278961,1761301845322,-151.0,0.00039938,120]
[392278962,1761301845332,-151.0,0.00039938,120]
[392278963,1761301845343,-151.0,0.00039938,120]
[392278964,1761301845353,-151.0,0.00039938,120]
[392278965,1761301845363,-151.0,0.00039938,120]
[392278966,1761301845373,-151.0,0.00039938,120]
[392278967,1761301845383,-171.814864,0.00039938,120]
[392278968,1761301845393,-151.0,0.00039938,120]
[392278969,1761301845403,-171.814864,0.00039938,120]
[392278970,1761301845412,-151.0,0.00039938,120]
[392278971,1761301845422,-171.814864,0.00039938,120]
[392278972,1761301845432,-171.814864,0.00039938,120]
[392278973,1761301845442,-494.603744,0.00039938,30]
[392278974,1761301845451,-494.603744,0.00039938,30]
[392278975,1761301845461,-494.603744,0.00039938,30]
[392278976,1761301845471,-220.79817,0.00039938,120]
[392278977,1761301845481,-494.603744,0.00039938,30]
[392278978,1761301845490,-151.0,0.00039938,120]
[392278979,1761301845500,-220.79817,0.00039938,120]
[392278980,1761301845509,-220.79817,0.00039938,120]
[392278981,1761301845519,-220.79817,0.00039938,120]
[392278982,1761301845528,-151.0,0.00039938,120]
[392278983,1761301845538,-185.336876,0.00039938,120]
[392278984,1761301845548,-151.0,0.00039938,120]
[392278985,1761301845557,-151.0,0.00039938,120]
[392278986,1761301845568,-151.0,0.00039938,120]
[392278987,1761301845578,-185.336876,0.00039938,120]
[392278988,1761301845588,-185.336876,0.00039938,120]
[392278989,1761301845598,-151.0,0.00039938,120]
[392278990,1761301845607,-180.170392,0.00039938,120]
[392278991,1761301845617,-185.336876,0.00039938,120]
[392278992,1761301845628,-180.170392,0.00039938,120]
[392278993,1761301845637,-180.170392,0.00039938,120]
[392278994,1761301845647,-180.170392,0.00039938,120]
[392278995,1761301845657,-20271.050087,0.0003997,3]
[392278996,1761301845667,-2261.35225741,0.0003997,3]
[392278997,1761301845677,-2261.35225741,0.0003997,3]
[392278998,1761301845686,-201.23975473,0.00039973,5]
[392278999,1761301845696,-150.0,0.00039978,2]
[392279000,1761301845706,-500.0,0.00039978,30]
[392279001,1761301845716,-150.0,0.00039978,2]
[392279002,1761301845726,-150.0,0.00039978,30]
[392279003,1761301845736,-150.0,0.00039978,30]
[392279004,1761301845746,-17061.53672343,0.0003998,2]
[392279005,1761301845756,-2261.35225741,0.0003998,3]
[392279006,1761301845766,-60813.150261,0.0003999,3]
[392279007,1761301845776,-15829.4658019,0.0003999,3]
[392279008,1761301845786,-500.0,0.00039999,2]
[392279009,1761301845796,-9999.99,0.0004,120]
[392279010,1761301845806,-647.71,0.0004,120]
[392279011,1761301845815,-10000.0,0.0004,120]
[392279012,1761301845826,-15000.0,0.0004,120]
[392279013,1761301845836,-203805.4772536,0.0004,2]
[392279014,1761301845845,-151.0,0.0004,120]
[392279015,1761301845856,-942.282971,0.0004,120]
[392279016,1761301845866,-942.282971,0.0004,120]
[392279017,1761301845875,-942.282971,0.0004,120]
[392279018,1761301845885,-158.403957,0.0004,120]
[392279019,1761301845896,-151.0,0.0004,120]
[392279020,1761301845907,-151.0,0.0004,120]
[392279021,1761301845916,-151.0,0.0004,120]
[392279022,1761301845926,-151.0,0.0004,120]
[392279023,1761301845941,-151.0,0.0004,120]
[392279024,1761301845950,-151.0,0.0004,120]
[392279025,1761301845960,-388.10741,0.0004,120]
[392279026,1761301845971,-151.0,0.0004,120]
[392279027,1761301845980,-151.0,0.0004,120]
[392279028,1761301845990,-151.0,0.0004,120]
[392279029,1761301846000,-388.10741,0.0004,120]
[392279030,1761301846011,-151.0,0.0004,120]
[392279031,1761301846020,-151.0,0.0004,120]
[392279032,1761301846031,-388.10741,0.0004,120]
[392279033,1761301846041,-151.0,0.0004,120]
[392279034,1761301846051,-388.10741,0.0004,120]
[392279035,1761301846060,-151.0,0.0004,120]
[392279036,1761301846070,-151.0,0.0004,120]
[392279037,1761301846080,-151.0,0.0004,120]
[392279038,1761301846090,-151.0,0.0004,120]
[392279039,1761301846099,-151.0,0.0004,120]
[392279040,1761301846109,-151.0,0.0004,120]
[392279041,1761301846119,-299.147991,0.0004,120]
[392279042,1761301846129,-299.147991,0.0004,120]
[392279043,1761301846139,-151.0,0.0004,30]
[392279044,1761301846148,-299.147991,0.0004,120]
[392279045,1761301846159,-151.0,0.0004,120]
[392279046,1761301846169,-299.147991,0.0004,120]
[392279047,1761301846179,-151.0,0.0004,120]
[392279048,1761301846189,-151.0,0.0004,120]
[392279049,1761301846199,-151.0,0.0004,120]
[392279050,1761301846209,-151.0,0.0004,120]
[392279051,1761301846219,-151.0,0.0004,120]
[392279052,1761301846229,-151.0,0.0004,120]
[392279053,1761301846239,-151.0,0.0004,120]
[392279054,1761301846249,-151.0,0.0004,120]
[392279055,1761301846258,-80139.78041411,0.0004,120]
[392279056,1761301846268,-56646.88271826,0.0004,2]
[392279057,1761301846278,-40000.0,0.0004,120]
[392279058,1761301846288,-264.07043,0.0004,120]
[392279059,1761301846299,-151.0,0.0004,120]
[392279060,1761301846309,-151.0,0.0004,120]
[392279061,1761301846319,-333.953392,0.0004,120]
[392279062,1761301846329,-333.953392,0.0004,120]
[392279063,1761301846338,-151.0,0.0004,120]
[392279064,1761301846348,-333.953392,0.0004,120]
[392279065,1761301846358,-151.0,0.0004,30]
[392279066,1761301846368,-333.953392,0.0004,120]
[392279067,1761301846377,-190.035517,0.0004,120]
[392279068,1761301846387,-190.035517,0.0004,120]
[392279069,1761301846397,-190.035517,0.0004,120]
[392279070,1761301846407,-190.035517,0.0004,120]
[392279071,1761301846416,-324.417827,0.0004,120]
[392279072,1761301846426,-324.417827,0.0004,120]
[392279073,1761301846436,-324.417827,0.0004,120]
[392279074,1761301846446,-324.417827,0.0004,120]
[392279075,1761301846456,-151.0,0.0004,120]
[392279076,1761301846465,-151.0,0.0004,120]
[392279077,1761301846475,-151.0,0.0004,120]
[392279078,1761301846485,-151.0,0.0004,120]
[392279079,1761301846495,-151.0,0.0004,120]
[392279080,1761301846506,-151.0,0.0004,120]
[392279081,1761301846516,-2471.047006,0.0004,120]
[392279082,1761301846526,-151.0,0.0004,120]
[392279083,1761301846540,-2471.047006,0.0004,120]
[392279084,1761301846551,-2471.047006,0.0004,120]
[392279085,1761301846561,-150.0,0.00040033,2]
[392279086,1761301846570,-500.0,0.00040033,30]
[392279087,1761301846581,-150.0,0.00040033,2]
[392279088,1761301846592,-150.0,0.00040061,30]
[392279089,1761301846606,-500.0,0.00040069,30]
[392279090,1761301846618,-200.0,0.00040088,2]
[392279091,1761301846629,-336.0,0.00040088,30]
[392279092,1761301846640,-200.0,0.00040088,2]
[392279093,1761301846650,-2000.0,0.00040116,5]
[392279094,1761301846661,-639.59607453,0.00040116,5]
[392279095,1761301846671,-2000.0,0.00040116,5]
[392279096,1761301846680,-1000.0,0.00040116,5]
[392279097,1761301846691,-651.71,0.000402,14]
[392279098,1761301846701,-506.05,0.00040237,2]
[392279099,1761301846712,-1425.0,0.00040253,2]
[392279100,1761301846723,-1171.01824645,0.00040257,28]
[392279101,1761301846733,-810.58879112,0.0004026,2]
[392279102,1761301846743,-430.74709499,0.00040268,30]
[392279103,1761301846753,-300.0,0.0004028,2]
[392279104,1761301846762,-2000.0,0.000403,2]
[392279105,1761301846773,-810.58879112,0.00040322,2]
[392279106,1761301846783,-151.0,0.00040393,120]
[392279107,1761301846793,-151.0,0.00040393,120]
[392279108,1761301846803,-151.0,0.00040393,120]
[392279109,1761301846813,-151.0,0.00040393,120]
[392279110,1761301846823,-151.0,0.00040393,120]
[392279111,1761301846834,-151.0,0.00040393,120]
[392279112,1761301846845,-151.0,0.00040393,120]
[392279113,1761301846857,-151.0,0.00040393,120]
[392279114,1761301846867,-151.0,0.00040393,120]
[392279115,1761301846877,-171.814864,0.00040393,120]
[392279116,1761301846887,-151.0,0.00040393,120]
[392279117,1761301846897,-171.814864,0.00040393,120]
[392279118,1761301846907,-171.814864,0.00040393,120]
[392279119,1761301846918,-171.814864,0.00040393,120]
[392279120,1761301846927,-494.603744,0.00040393,30]
[392279121,1761301846942,-494.603744,0.00040393,30]
[392279122,1761301846952,-494.603744,0.00040393,30]
[392279123,1761301846964,-220.79817,0.00040393,120]
[392279124,1761301846974,-494.603744,0.00040393,30]
[392279125,1761301846984,-151.0,0.00040393,120]
[392279126,1761301846994,-220.79817,0.00040393,120]
[392279127,1761301847003,-220.79817,0.00040393,120]
[392279128,1761301847014,-220.79817,0.00040393,120]
[392279129,1761301847024,-500.0,0.00040393,2]
[392279130,1761301847041,-151.0,0.00040393,120]
[392279131,1761301847051,-185.336876,0.00040393,120]
[392279132,1761301847062,-151.0,0.00040393,120]
[392279133,1761301847072,-151.0,0.00040393,120]
[392279134,1761301847083,-151.0,0.00040393,120]
[392279135,1761301847093,-185.336876,0.00040393,120]
[392279136,1761301847103,-185.336876,0.00040393,120]
[392279137,1761301847113,-180.170392,0.00040393,120]
[392279138,1761301847129,-185.336876,0.00040393,120]
[392279139,1761301847139,-180.170392,0.00040393,120]
[392279140,1761301847148,-180.170392,0.00040393,120]
[392279141,1761301847159,-180.170392,0.00040393,120]
[392279142,1761301847169,-500.0,0.00040403,30]
[392279143,1761301847179,-500.0,0.00040405,30]
[392279144,1761301847190,-500.0,0.00040413,2]
[392279145,1761301847200,-1591.0,0.00040413,2]
[392279146,1761301847209,-606.0,0.00040413,2]
[392279147,1761301847219,-1312.0,0.00040413,2]
[392279148,1761301847229,-1269.0,0.00040413,2]
[392279149,1761301847239,-818.0,0.00040413,2]
[392279150,1761301847249,-903.0,0.00040413,2]
[392279151,1761301847259,-1185.0,0.00040413,2]
[392279152,1761301847269,-3422.10877081,0.00040413,2]
[392279153,1761301848248,-619.91483011,0.0004,120]
[392279154,1761301848831,-7811.35953052,0.00034879,2]
[392279155,1761301848842,-547.13308798,0.00039098,20]
[392279156,1761301848852,-1851.13217589,0.0004,120]
[392279157,1761301848861,-3116.89122919,0.00040413,2]
[392279158,1761301848870,-2053.0,0.00040413,2]
[392279159,1761301848880,-572.0,0.00040413,2]
[392279160,1761301848890,-3487.0,0.00040413,2]
[392279161,1761301848899,-513.13630037,0.00040413,2]
[392279265,1761302179309,-300.69376319,0.00024932,2]
[392279269,1761302209927,415.32,0.00013699,2]
[392279274,1761302223507,-300.0,0.00020187,2]
[392279276,1761302225504,-115.32,0.00020187,2]
[392279277,1761302225527,-184.68,0.00024932,2]
[392279282,1761302298590,-14.62623681,0.00024932,2]
[392279283,1761302298612,-189.87376335,0.00026676,2]
[392279284,1761302300704,-162.95538064,0.00026676,2]
[392279405,1761302778228,-500.0,0.00024932,2]
[392279736,1761302934805,-62.49085601,0.00026676,2]
[392279761,1761303006138,-500.0,0.00027425,120]
[392279762,1761303006178,-2937.50914399,0.00027425,120]
[392279772,1761303032037,-562.49085601,0.00027425,120]
[392279773,1761303032047,-250.0,0.00027425,2]
[392279774,1761303032058,-231.62970756,0.00028501,2]
[392279775,1761303032069,-269.47091472,0.00028567,120]
[392279776,1761303032079,-300.0,0.00029344,120]
[392279777,1761303032089,-339.46547378,0.00029344,120]
[392279778,1761303032099,-2270.18928977,0.00032807,2]
[392279779,1761303032108,-400.0,0.00032871,2]
[392279780,1761303032118,-153.0,0.00032877,30]
[392279781,1761303032132,-153.0,0.00032877,30]
[392279782,1761303032142,-153.0,0.00032877,30]
[392279783,1761303032152,-153.0,0.00032877,30]
[392279784,1761303032163,-153.0,0.00032877,30]
[392279785,1761303032173,-153.0,0.00032877,30]